[Event "Live Chess"]
[Site "Chess.com"]
[Date "2010.12.02"]
[Round "-"]
[White "MrLim"]
[Black "hipposcottimus"]
[Result "1-0"]
[CurrentPosition "4R1k1/p4ppp/6b1/3p4/P7/2P5/3B3P/2K5 b - -"]
[Timezone "UTC"]
[ECO "D10"]
[ECOUrl "https://www.chess.com/openings/Slav-Defense-3.Nc3"]
[UTCDate "2010.12.02"]
[UTCTime "01:30:24"]
[WhiteElo "1371"]
[BlackElo "1694"]
[TimeControl "60"]
[Termination "MrLim won by checkmate"]
[StartTime "01:30:24"]
[EndDate "2010.12.02"]
[EndTime "01:31:43"]
[Link "https://www.chess.com/game/live/73169067"]

1. d4 {[%clk 0:01:00]} 1... d5 {[%clk 0:01:00]} 2. c4 {[%clk 0:00:59.6]} 2... c6 {[%clk 0:00:59.8]} 3. Nc3 {[%clk 0:00:59.1]} 3... Nd7 {[%clk 0:00:59.5]} 4. Nf3 {[%clk 0:00:58.7]} 4... e6 {[%clk 0:00:59.3]} 5. e3 {[%clk 0:00:58.3]} 5... Ngf6 {[%clk 0:00:59]} 6. c5 {[%clk 0:00:57.9]} 6... b6 {[%clk 0:00:57]} 7. Ne5 {[%clk 0:00:57.5]} 7... bxc5 {[%clk 0:00:55.6]} 8. dxc5 {[%clk 0:00:56.4]} 8... Nxc5 {[%clk 0:00:54.2]} 9. Qa4 {[%clk 0:00:54.3]} 9... Bd7 {[%clk 0:00:51.4]} 10. Qf4 {[%clk 0:00:51.8]} 10... Bd6 {[%clk 0:00:49.2]} 11. Nxc6 {[%clk 0:00:45.3]} 11... Bxf4 {[%clk 0:00:46.5]} 12. Nxd8 {[%clk 0:00:44.2]} 12... Rxd8 {[%clk 0:00:46.2]} 13. exf4 {[%clk 0:00:43.2]} 13... Nce4 {[%clk 0:00:45.9]} 14. f3 {[%clk 0:00:41.7]} 14... Nxc3 {[%clk 0:00:44.7]} 15. bxc3 {[%clk 0:00:41]} 15... Rc8 {[%clk 0:00:44.1]} 16. Bd2 {[%clk 0:00:38.1]} 16... O-O {[%clk 0:00:43.8]} 17. O-O-O {[%clk 0:00:36.7]} 17... Rfe8 {[%clk 0:00:43]} 18. a4 {[%clk 0:00:35.4]} 18... e5 {[%clk 0:00:42.7]} 19. f5 {[%clk 0:00:34.4]} 19... e4 {[%clk 0:00:41.5]} 20. Be2 {[%clk 0:00:32.3]} 20... Bxf5 {[%clk 0:00:39.7]} 21. fxe4 {[%clk 0:00:30.5]} 21... Bxe4 {[%clk 0:00:37]} 22. Rhf1 {[%clk 0:00:29.9]} 22... Bg6 {[%clk 0:00:35.9]} 23. Bd3 {[%clk 0:00:28.6]} 23... Ne4 {[%clk 0:00:35.6]} 24. Bxe4 {[%clk 0:00:27.6]} 24... Bxe4 {[%clk 0:00:35.3]} 25. Rde1 {[%clk 0:00:25.8]} 25... Bxg2 {[%clk 0:00:34.9]} 26. Rxe8+ {[%clk 0:00:24.8]} 26... Rxe8 {[%clk 0:00:34.6]} 27. Rg1 {[%clk 0:00:24]} 27... Be4 {[%clk 0:00:34.2]} 28. Re1 {[%clk 0:00:22.8]} 28... Bg6 {[%clk 0:00:33.9]} 29. Rxe8# {[%clk 0:00:21.5]} 1-0

[Event "Live Chess"]
[Site "Chess.com"]
[Date "2010.12.02"]
[Round "-"]
[White "hipposcottimus"]
[Black "jokerman17"]
[Result "0-1"]
[CurrentPosition "r7/5R2/pQ2b2p/4kpp1/2P5/8/P4PPP/3r2K1 w - -"]
[Timezone "UTC"]
[ECO "B20"]
[ECOUrl "https://www.chess.com/openings/Sicilian-Defense"]
[UTCDate "2010.12.02"]
[UTCTime "01:27:54"]
[WhiteElo "1707"]
[BlackElo "1914"]
[TimeControl "60"]
[Termination "jokerman17 won by checkmate"]
[StartTime "01:27:54"]
[EndDate "2010.12.02"]
[EndTime "01:29:47"]
[Link "https://www.chess.com/game/live/73168515"]

1. e4 {[%clk 0:01:00]} 1... c5 {[%clk 0:01:00]} 2. Bb5 {[%clk 0:00:57.9]} 2... a6 {[%clk 0:00:58.1]} 3. Be2 {[%clk 0:00:57.5]} 3... d6 {[%clk 0:00:57.1]} 4. Nf3 {[%clk 0:00:57.2]} 4... Nf6 {[%clk 0:00:56.6]} 5. c4 {[%clk 0:00:56.9]} 5... g6 {[%clk 0:00:55.8]} 6. d3 {[%clk 0:00:56.6]} 6... Bg7 {[%clk 0:00:55.3]} 7. Nc3 {[%clk 0:00:56.3]} 7... O-O {[%clk 0:00:54.9]} 8. Bd2 {[%clk 0:00:56]} 8... Nc6 {[%clk 0:00:54.2]} 9. O-O {[%clk 0:00:55.8]} 9... e6 {[%clk 0:00:53.8]} 10. Re1 {[%clk 0:00:55.4]} 10... Bd7 {[%clk 0:00:53.3]} 11. d4 {[%clk 0:00:54.8]} 11... cxd4 {[%clk 0:00:51.2]} 12. e5 {[%clk 0:00:49.9]} 12... dxe5 {[%clk 0:00:45.6]} 13. Nb1 {[%clk 0:00:46.3]} 13... e4 {[%clk 0:00:43.7]} 14. Ng5 {[%clk 0:00:44.1]} 14... d3 {[%clk 0:00:42]} 15. Bf1 {[%clk 0:00:39.6]} 15... h6 {[%clk 0:00:40.8]} 16. Nxe4 {[%clk 0:00:38.6]} 16... Nxe4 {[%clk 0:00:38.9]} 17. Rxe4 {[%clk 0:00:38.3]} 17... Bxb2 {[%clk 0:00:37.4]} 18. Re3 {[%clk 0:00:37.7]} 18... Bxa1 {[%clk 0:00:36.2]} 19. Rxd3 {[%clk 0:00:36.5]} 19... Qc7 {[%clk 0:00:35.3]} 20. Nc3 {[%clk 0:00:36.1]} 20... Bxc3 {[%clk 0:00:33.1]} 21. Bxc3 {[%clk 0:00:35.8]} 21... Rfd8 {[%clk 0:00:32.9]} 22. Rf3 {[%clk 0:00:34.5]} 22... Ne5 {[%clk 0:00:31.6]} 23. Rf6 {[%clk 0:00:30.9]} 23... g5 {[%clk 0:00:26.7]} 24. Bxe5 {[%clk 0:00:29.9]} 24... Qxe5 {[%clk 0:00:25.9]} 25. Qf3 {[%clk 0:00:28.9]} 25... Kg7 {[%clk 0:00:23.1]} 26. Rxf7+ {[%clk 0:00:27.9]} 26... Kg6 {[%clk 0:00:22.7]} 27. Bd3+ {[%clk 0:00:23.7]} 27... Qf5 {[%clk 0:00:17.8]} 28. Bxf5+ {[%clk 0:00:23]} 28... exf5 {[%clk 0:00:17.8]} 29. Qxb7 {[%clk 0:00:16.9]} 29... Be6 {[%clk 0:00:16.5]} 30. Rg7+ {[%clk 0:00:15.1]} 30... Kf6 {[%clk 0:00:15.9]} 31. Rf7+ {[%clk 0:00:09.8]} 31... Ke5 {[%clk 0:00:15.9]} 32. Qb6 {[%clk 0:00:09.1]} 32... Rd1# {[%clk 0:00:14.5]} 0-1

[Event "Live Chess"]
[Site "Chess.com"]
[Date "2010.12.02"]
[Round "-"]
[White "mrave"]
[Black "hipposcottimus"]
[Result "0-1"]
[CurrentPosition "8/8/3p1p2/2p2P2/p1P2P2/P1P1KBk1/8/8 w - -"]
[Timezone "UTC"]
[ECO "C47"]
[ECOUrl "https://www.chess.com/openings/Four-Knights-Game-Scotch-Oxford-Gambit"]
[UTCDate "2010.12.02"]
[UTCTime "01:25:14"]
[WhiteElo "2003"]
[BlackElo "1707"]
[TimeControl "60"]
[Termination "hipposcottimus won on time"]
[StartTime "01:25:14"]
[EndDate "2010.12.02"]
[EndTime "01:27:31"]
[Link "https://www.chess.com/game/live/73167928"]

1. e4 {[%clk 0:01:00]} 1... e5 {[%clk 0:01:00]} 2. Nf3 {[%clk 0:00:59.2]} 2... Nc6 {[%clk 0:00:59.7]} 3. Nc3 {[%clk 0:00:58.5]} 3... Nf6 {[%clk 0:00:59.4]} 4. d4 {[%clk 0:00:57.8]} 4... Bb4 {[%clk 0:00:59.1]} 5. d5 {[%clk 0:00:56.5]} 5... Nd4 {[%clk 0:00:58.4]} 6. Nxd4 {[%clk 0:00:55]} 6... Bxc3+ {[%clk 0:00:58.2]} 7. bxc3 {[%clk 0:00:53.1]} 7... exd4 {[%clk 0:00:57.4]} 8. Qxd4 {[%clk 0:00:51.7]} 8... d6 {[%clk 0:00:55]} 9. Bg5 {[%clk 0:00:50.6]} 9... c5 {[%clk 0:00:49.9]} 10. dxc6 {[%clk 0:00:48.7]} 10... bxc6 {[%clk 0:00:49.6]} 11. Bxf6 {[%clk 0:00:47.6]} 11... gxf6 {[%clk 0:00:47]} 12. c4 {[%clk 0:00:43.4]} 12... Be6 {[%clk 0:00:46]} 13. Bd3 {[%clk 0:00:41.4]} 13... c5 {[%clk 0:00:44.9]} 14. Qe3 {[%clk 0:00:40]} 14... Qa5+ {[%clk 0:00:43.7]} 15. Qd2 {[%clk 0:00:38.1]} 15... Qxd2+ {[%clk 0:00:42.6]} 16. Kxd2 {[%clk 0:00:38.1]} 16... Rb8 {[%clk 0:00:42.2]} 17. Rab1 {[%clk 0:00:36.4]} 17... Ke7 {[%clk 0:00:39.4]} 18. Rb3 {[%clk 0:00:34.3]} 18... a5 {[%clk 0:00:37]} 19. Rhb1 {[%clk 0:00:32.6]} 19... Ra8 {[%clk 0:00:35.4]} 20. Rb7+ {[%clk 0:00:30.1]} 20... Kf8 {[%clk 0:00:32.1]} 21. f4 {[%clk 0:00:28.6]} 21... Kg7 {[%clk 0:00:30.5]} 22. g3 {[%clk 0:00:27.4]} 22... a4 {[%clk 0:00:29.2]} 23. a3 {[%clk 0:00:25.6]} 23... f5 {[%clk 0:00:28.2]} 24. Ke3 {[%clk 0:00:23.6]} 24... h5 {[%clk 0:00:25.9]} 25. exf5 {[%clk 0:00:20.8]} 25... Bc8 {[%clk 0:00:20.7]} 26. Rb8 {[%clk 0:00:18.2]} 26... Rxb8 {[%clk 0:00:20]} 27. Rxb8 {[%clk 0:00:17.3]} 27... Bd7 {[%clk 0:00:19.7]} 28. Rxh8 {[%clk 0:00:15.2]} 28... Kxh8 {[%clk 0:00:17.7]} 29. c3 {[%clk 0:00:13.4]} 29... Kg7 {[%clk 0:00:17.4]} 30. Be4 {[%clk 0:00:12.6]} 30... Kf6 {[%clk 0:00:17.1]} 31. Kf3 {[%clk 0:00:11.9]} 31... Kg7 {[%clk 0:00:13.7]} 32. h3 {[%clk 0:00:10.1]} 32... f6 {[%clk 0:00:13.4]} 33. g4 {[%clk 0:00:09]} 33... Kh6 {[%clk 0:00:12.9]} 34. h4 {[%clk 0:00:06.9]} 34... hxg4+ {[%clk 0:00:11.6]} 35. Kxg4 {[%clk 0:00:06.9]} 35... Be8 {[%clk 0:00:10.8]} 36. Bd5 {[%clk 0:00:05.3]} 36... Bh5+ {[%clk 0:00:10.4]} 37. Kg3 {[%clk 0:00:04]} 37... Be2 {[%clk 0:00:09.1]} 38. Be6 {[%clk 0:00:04]} 38... Bh5 {[%clk 0:00:07.7]} 39. Kf2 {[%clk 0:00:02.7]} 39... Be8 {[%clk 0:00:07.2]} 40. Ke3 {[%clk 0:00:02.7]} 40... Bc6 {[%clk 0:00:06.8]} 41. Bd5 {[%clk 0:00:01.6]} 41... Kh5 {[%clk 0:00:06.3]} 42. Bxc6 {[%clk 0:00:00.7]} 42... Kxh4 {[%clk 0:00:06]} 43. Bf3 {[%clk 0:00:00.1]} 43... Kg3 {[%clk 0:00:04.8]} 0-1

[Event "Live Chess"]
[Site "Chess.com"]
[Date "2010.12.02"]
[Round "-"]
[White "hipposcottimus"]
[Black "JohnnyBWizer"]
[Result "0-1"]
[CurrentPosition "2Q2nk1/1p3pp1/p6p/8/1P2qPP1/5N2/r6P/5RK1 w - -"]
[Timezone "UTC"]
[ECO "C62"]
[ECOUrl "https://www.chess.com/openings/Ruy-Lopez-Opening-Old-Steinitz-Defense-4.d4-exd4-5.Qxd4"]
[UTCDate "2010.12.02"]
[UTCTime "00:51:26"]
[WhiteElo "1365"]
[BlackElo "1384"]
[TimeControl "720+3"]
[Termination "JohnnyBWizer won on time"]
[StartTime "00:51:26"]
[EndDate "2010.12.02"]
[EndTime "01:13:41"]
[Link "https://www.chess.com/game/live/73160376"]

1. e4 {[%clk 0:12:00]} 1... e5 {[%clk 0:12:00]} 2. Nf3 {[%clk 0:12:01.2]} 2... d6 {[%clk 0:11:59.3]} 3. d4 {[%clk 0:12:02]} 3... exd4 {[%clk 0:11:59.7]} 4. Qxd4 {[%clk 0:12:01.2]} 4... Nc6 {[%clk 0:12:00.1]} 5. Bb5 {[%clk 0:12:02.5]} 5... Bd7 {[%clk 0:12:01.7]} 6. Bxc6 {[%clk 0:12:04.3]} 6... Bxc6 {[%clk 0:12:03.9]} 7. c4 {[%clk 0:12:06.6]} 7... Nf6 {[%clk 0:12:06.1]} 8. Nc3 {[%clk 0:12:08.3]} 8... a6 {[%clk 0:12:04.3]} 9. Bg5 {[%clk 0:12:08.7]} 9... Be7 {[%clk 0:12:05.5]} 10. O-O {[%clk 0:12:09.4]} 10... h6 {[%clk 0:12:02.8]} 11. Bh4 {[%clk 0:11:55.4]} 11... O-O {[%clk 0:11:56.3]} 12. Nd5 {[%clk 0:11:42.5]} 12... Bxd5 {[%clk 0:11:42.1]} 13. cxd5 {[%clk 0:11:34.5]} 13... Nh7 {[%clk 0:11:41.8]} 14. Bg3 {[%clk 0:11:20.7]} 14... Bf6 {[%clk 0:11:39.3]} 15. e5 {[%clk 0:11:19.4]} 15... dxe5 {[%clk 0:11:39.9]} 16. Bxe5 {[%clk 0:11:17.5]} 16... Bxe5 {[%clk 0:11:38.1]} 17. Nxe5 {[%clk 0:11:19.5]} 17... Re8 {[%clk 0:11:00.2]} 18. f4 {[%clk 0:09:42.6]} 18... Qd6 {[%clk 0:10:55]} 19. b4 {[%clk 0:09:11]} 19... c6 {[%clk 0:10:27.1]} 20. Rad1 {[%clk 0:08:07.7]} 20... Qf6 {[%clk 0:09:26.5]} 21. Qc5 {[%clk 0:07:26.3]} 21... Rad8 {[%clk 0:09:07.4]} 22. d6 {[%clk 0:06:52.5]} 22... Nf8 {[%clk 0:08:31.9]} 23. d7 {[%clk 0:05:49.7]} 23... Re7 {[%clk 0:08:21.4]} 24. Rd6 {[%clk 0:05:23.4]} 24... Qf5 {[%clk 0:07:30.9]} 25. g4 {[%clk 0:04:45.6]} 25... Qe4 {[%clk 0:07:31.1]} 26. Rxc6 {[%clk 0:03:44.6]} 26... Rexd7 {[%clk 0:06:53]} 27. Rc8 {[%clk 0:02:02.6]} 27... Rd5 {[%clk 0:06:17.1]} 28. Qc7 {[%clk 0:01:59.9]} 28... Rxc8 {[%clk 0:05:16.2]} 29. Qxc8 {[%clk 0:01:38.2]} 29... Rd2 {[%clk 0:04:18.3]} 30. Nf3 {[%clk 0:00:53.6]} 30... Rxa2 {[%clk 0:04:06.6]} 0-1

[Event "Live Chess"]
[Site "Chess.com"]
[Date "2010.12.02"]
[Round "-"]
[White "hipposcottimus"]
[Black "TARGET7"]
[Result "0-1"]
[CurrentPosition "2k3r1/2p5/p6r/1p6/4B2K/7P/6P1/2R5 w - -"]
[Timezone "UTC"]
[ECO "B06"]
[ECOUrl "https://www.chess.com/openings/Modern-Defense-with-1-e4"]
[UTCDate "2010.12.02"]
[UTCTime "00:01:35"]
[WhiteElo "1707"]
[BlackElo "1616"]
[TimeControl "60"]
[Termination "TARGET7 won by checkmate"]
[StartTime "00:01:35"]
[EndDate "2010.12.02"]
[EndTime "00:03:47"]
[Link "https://www.chess.com/game/live/73149626"]

1. e4 {[%clk 0:01:00]} 1... g6 {[%clk 0:01:00]} 2. e5 {[%clk 0:00:57.8]} 2... Bg7 {[%clk 0:00:59.7]} 3. d4 {[%clk 0:00:57.5]} 3... d6 {[%clk 0:00:58.9]} 4. f4 {[%clk 0:00:57]} 4... dxe5 {[%clk 0:00:58.1]} 5. fxe5 {[%clk 0:00:56.7]} 5... Nc6 {[%clk 0:00:57.2]} 6. Nf3 {[%clk 0:00:56.2]} 6... Bg4 {[%clk 0:00:56.3]} 7. Bf4 {[%clk 0:00:54.5]} 7... Bxf3 {[%clk 0:00:55]} 8. Qxf3 {[%clk 0:00:54.2]} 8... Nxd4 {[%clk 0:00:54.1]} 9. Qd3 {[%clk 0:00:53.5]} 9... Nf5 {[%clk 0:00:49.6]} 10. c3 {[%clk 0:00:52.5]} 10... Qxd3 {[%clk 0:00:48.6]} 11. Bxd3 {[%clk 0:00:51.9]} 11... O-O-O {[%clk 0:00:47.9]} 12. Bc4 {[%clk 0:00:48.2]} 12... e6 {[%clk 0:00:46.9]} 13. Bb3 {[%clk 0:00:47.9]} 13... Nge7 {[%clk 0:00:45.7]} 14. O-O {[%clk 0:00:46.9]} 14... Nc6 {[%clk 0:00:44.1]} 15. Nd2 {[%clk 0:00:46.7]} 15... h6 {[%clk 0:00:42.7]} 16. Nc4 {[%clk 0:00:46.4]} 16... g5 {[%clk 0:00:41.6]} 17. Bd2 {[%clk 0:00:45.7]} 17... a6 {[%clk 0:00:38.8]} 18. Be1 {[%clk 0:00:45.3]} 18... b5 {[%clk 0:00:36.5]} 19. Nd2 {[%clk 0:00:40]} 19... Nxe5 {[%clk 0:00:35.5]} 20. Nf3 {[%clk 0:00:39.3]} 20... Nd3 {[%clk 0:00:33.9]} 21. Bf2 {[%clk 0:00:37]} 21... Nxb2 {[%clk 0:00:33.2]} 22. Rab1 {[%clk 0:00:35.7]} 22... Nd3 {[%clk 0:00:30.9]} 23. Bc2 {[%clk 0:00:33.4]} 23... Nxf2 {[%clk 0:00:29.7]} 24. Rxf2 {[%clk 0:00:32.9]} 24... Bxc3 {[%clk 0:00:28.2]} 25. Be4 {[%clk 0:00:31.8]} 25... Nd4 {[%clk 0:00:24.4]} 26. Rc1 {[%clk 0:00:31]} 26... Nxf3+ {[%clk 0:00:23.1]} 27. Bxf3 {[%clk 0:00:30.3]} 27... Bd4 {[%clk 0:00:22.5]} 28. Kf1 {[%clk 0:00:27.4]} 28... Bxf2 {[%clk 0:00:21.9]} 29. Kxf2 {[%clk 0:00:27.1]} 29... Rd2+ {[%clk 0:00:21.2]} 30. Kg3 {[%clk 0:00:26.8]} 30... Rhd8 {[%clk 0:00:20.5]} 31. Ba8 {[%clk 0:00:25.8]} 31... h5 {[%clk 0:00:17.9]} 32. Bf3 {[%clk 0:00:25.5]} 32... f6 {[%clk 0:00:16.2]} 33. h3 {[%clk 0:00:24.6]} 33... h4+ {[%clk 0:00:14.9]} 34. Kg4 {[%clk 0:00:23.3]} 34... R2d4+ {[%clk 0:00:14]} 35. Kh5 {[%clk 0:00:22.5]} 35... Rh8+ {[%clk 0:00:12.5]} 36. Kg6 {[%clk 0:00:22.2]} 36... f5 {[%clk 0:00:11.6]} 37. Kf6 {[%clk 0:00:21.3]} 37... e5 {[%clk 0:00:10.8]} 38. Kxf5 {[%clk 0:00:20.2]} 38... e4 {[%clk 0:00:09.6]} 39. Bxe4 {[%clk 0:00:18.9]} 39... Rf8+ {[%clk 0:00:07.7]} 40. Ke5 {[%clk 0:00:18.5]} 40... Rfd8 {[%clk 0:00:06.9]} 41. Kf5 {[%clk 0:00:17.1]} 41... R4d6 {[%clk 0:00:06.4]} 42. Kg4 {[%clk 0:00:15.9]} 42... Rd2 {[%clk 0:00:05.2]} 43. Kxg5 {[%clk 0:00:14.8]} 43... Rxa2 {[%clk 0:00:04.3]} 44. Kf5 {[%clk 0:00:14.2]} 44... Rad2 {[%clk 0:00:03.4]} 45. Kf6 {[%clk 0:00:13.1]} 45... R2d6+ {[%clk 0:00:03.1]} 46. Kg5 {[%clk 0:00:11.5]} 46... Rg8+ {[%clk 0:00:02.2]} 47. Kxh4 {[%clk 0:00:11.2]} 47... Rh6# {[%clk 0:00:01.1]} 0-1

[Event "Live Chess"]
[Site "Chess.com"]
[Date "2010.12.01"]
[Round "-"]
[White "Pasachhe"]
[Black "hipposcottimus"]
[Result "0-1"]
[CurrentPosition "1r3rk1/Nb2bppp/4pn2/8/2B2P2/P3P3/2QN2qP/1R3RK1 w - -"]
[Timezone "UTC"]
[ECO "A10"]
[ECOUrl "https://www.chess.com/openings/English-Opening-Jaenisch-Gambit"]
[UTCDate "2010.12.01"]
[UTCTime "23:03:08"]
[WhiteElo "1552"]
[BlackElo "1716"]
[TimeControl "60"]
[Termination "hipposcottimus won by checkmate"]
[StartTime "23:03:08"]
[EndDate "2010.12.01"]
[EndTime "23:04:26"]
[Link "https://www.chess.com/game/live/73136140"]

1. c4 {[%clk 0:01:00]} 1... b5 {[%clk 0:01:00]} 2. d3 {[%clk 0:01:00]} 2... bxc4 {[%clk 0:00:58.9]} 3. dxc4 {[%clk 0:00:59.4]} 3... Ba6 {[%clk 0:00:57.6]} 4. e3 {[%clk 0:00:58.1]} 4... c5 {[%clk 0:00:54.6]} 5. Nc3 {[%clk 0:00:57.4]} 5... Nc6 {[%clk 0:00:53.7]} 6. f4 {[%clk 0:00:54.1]} 6... Nf6 {[%clk 0:00:53]} 7. Be2 {[%clk 0:00:53.3]} 7... d6 {[%clk 0:00:51.1]} 8. Nf3 {[%clk 0:00:52.6]} 8... e6 {[%clk 0:00:50.3]} 9. O-O {[%clk 0:00:52.1]} 9... Be7 {[%clk 0:00:49.8]} 10. Bd2 {[%clk 0:00:51.4]} 10... O-O {[%clk 0:00:48.9]} 11. a3 {[%clk 0:00:51.4]} 11... Na5 {[%clk 0:00:47]} 12. b4 {[%clk 0:00:50.3]} 12... Nxc4 {[%clk 0:00:45.9]} 13. bxc5 {[%clk 0:00:46.8]} 13... dxc5 {[%clk 0:00:42.9]} 14. Qb3 {[%clk 0:00:43.3]} 14... Nxd2 {[%clk 0:00:38.6]} 15. Nxd2 {[%clk 0:00:42.2]} 15... c4 {[%clk 0:00:33.7]} 16. Bxc4 {[%clk 0:00:39.3]} 16... Rb8 {[%clk 0:00:33.3]} 17. Qc2 {[%clk 0:00:36.6]} 17... Bb7 {[%clk 0:00:27.3]} 18. Rab1 {[%clk 0:00:34.7]} 18... Qc7 {[%clk 0:00:26.3]} 19. Nb5 {[%clk 0:00:31]} 19... Qc6 {[%clk 0:00:25.2]} 20. Nxa7 {[%clk 0:00:28.4]} 20... Qxg2# {[%clk 0:00:23.9]} 0-1

[Event "Live Chess"]
[Site "Chess.com"]
[Date "2010.12.01"]
[Round "-"]
[White "Chessiskewl48"]
[Black "hipposcottimus"]
[Result "0-1"]
[CurrentPosition "3r1r2/pQp3kp/2nP2p1/3n4/8/8/PPPP2PP/RNB1q2K w - -"]
[Timezone "UTC"]
[ECO "C23"]
[ECOUrl "https://www.chess.com/openings/Bishops-Opening-2...Nc6"]
[UTCDate "2010.12.01"]
[UTCTime "23:00:55"]
[WhiteElo "1715"]
[BlackElo "1711"]
[TimeControl "60"]
[Termination "hipposcottimus won by checkmate"]
[StartTime "23:00:55"]
[EndDate "2010.12.01"]
[EndTime "23:01:59"]
[Link "https://www.chess.com/game/live/73135628"]

1. e4 {[%clk 0:01:00]} 1... e5 {[%clk 0:01:00]} 2. Bc4 {[%clk 0:01:00]} 2... Nc6 {[%clk 0:00:59.7]} 3. Bxf7+ {[%clk 0:01:00]} 3... Kxf7 {[%clk 0:00:58.4]} 4. Qh5+ {[%clk 0:01:00]} 4... g6 {[%clk 0:00:58]} 5. Qf3+ {[%clk 0:01:00]} 5... Nf6 {[%clk 0:00:57.3]} 6. Qb3+ {[%clk 0:01:00]} 6... Kg7 {[%clk 0:00:54.1]} 7. Nf3 {[%clk 0:01:00]} 7... d5 {[%clk 0:00:53.1]} 8. O-O {[%clk 0:00:57.9]} 8... Be6 {[%clk 0:00:50.8]} 9. Ng5 {[%clk 0:00:56.7]} 9... Qd6 {[%clk 0:00:45]} 10. Nxe6+ {[%clk 0:00:55.4]} 10... Qxe6 {[%clk 0:00:43.3]} 11. exd5 {[%clk 0:00:55.4]} 11... Nxd5 {[%clk 0:00:42.3]} 12. Qxb7 {[%clk 0:00:54.5]} 12... Rd8 {[%clk 0:00:37.4]} 13. Re1 {[%clk 0:00:53.1]} 13... Bd6 {[%clk 0:00:37]} 14. f4 {[%clk 0:00:49]} 14... Rhf8 {[%clk 0:00:36.6]} 15. fxe5 {[%clk 0:00:44.4]} 15... Qf5 {[%clk 0:00:33.6]} 16. exd6 {[%clk 0:00:36.8]} 16... Qf2+ {[%clk 0:00:32]} 17. Kh1 {[%clk 0:00:33.7]} 17... Qxe1# {[%clk 0:00:31.3]} 0-1

[Event "Live Chess"]
[Site "Chess.com"]
[Date "2010.12.01"]
[Round "-"]
[White "RazaAliSheikh"]
[Black "hipposcottimus"]
[Result "0-1"]
[CurrentPosition "3r3k/p5pp/3q4/5p2/6P1/Kp5P/P7/8 w - -"]
[Timezone "UTC"]
[ECO "A00"]
[ECOUrl "https://www.chess.com/openings/Barnes-Opening-1...e5"]
[UTCDate "2010.12.01"]
[UTCTime "22:58:24"]
[WhiteElo "1351"]
[BlackElo "1703"]
[TimeControl "60"]
[Termination "hipposcottimus won on time"]
[StartTime "22:58:24"]
[EndDate "2010.12.01"]
[EndTime "23:00:33"]
[Link "https://www.chess.com/game/live/73134978"]

1. f3 {[%clk 0:01:00]} 1... e5 {[%clk 0:01:00]} 2. e3 {[%clk 0:00:59.6]} 2... d5 {[%clk 0:00:59.7]} 3. d3 {[%clk 0:00:59]} 3... c5 {[%clk 0:00:59.5]} 4. c3 {[%clk 0:00:58.5]} 4... Nc6 {[%clk 0:00:59.2]} 5. f4 {[%clk 0:00:58.1]} 5... f5 {[%clk 0:00:58.8]} 6. fxe5 {[%clk 0:00:57]} 6... Nxe5 {[%clk 0:00:58.5]} 7. g3 {[%clk 0:00:56.1]} 7... Nf6 {[%clk 0:00:57]} 8. d4 {[%clk 0:00:55.4]} 8... Nc4 {[%clk 0:00:54]} 9. dxc5 {[%clk 0:00:54]} 9... Bxc5 {[%clk 0:00:52.4]} 10. b3 {[%clk 0:00:52.3]} 10... Nxe3 {[%clk 0:00:51.4]} 11. Bxe3 {[%clk 0:00:50.7]} 11... Bxe3 {[%clk 0:00:51.1]} 12. Ne2 {[%clk 0:00:49.4]} 12... Qb6 {[%clk 0:00:48.1]} 13. c4 {[%clk 0:00:47.1]} 13... Bf2+ {[%clk 0:00:46.7]} 14. Kd2 {[%clk 0:00:44.8]} 14... Qe3+ {[%clk 0:00:46.4]} 15. Kc2 {[%clk 0:00:43.3]} 15... Ne4 {[%clk 0:00:45.7]} 16. Qd3 {[%clk 0:00:39.7]} 16... Qc5 {[%clk 0:00:38.1]} 17. Nf4 {[%clk 0:00:37.2]} 17... O-O {[%clk 0:00:34.1]} 18. Nxd5 {[%clk 0:00:32.7]} 18... Be6 {[%clk 0:00:31.4]} 19. Be2 {[%clk 0:00:28.9]} 19... Rad8 {[%clk 0:00:30.9]} 20. Nbc3 {[%clk 0:00:26.5]} 20... Nxc3 {[%clk 0:00:24.6]} 21. Qxc3 {[%clk 0:00:23.5]} 21... Bxd5 {[%clk 0:00:22.5]} 22. Rad1 {[%clk 0:00:22.2]} 22... Be4+ {[%clk 0:00:20.4]} 23. Bd3 {[%clk 0:00:19.1]} 23... Bxd3+ {[%clk 0:00:18.7]} 24. Rxd3 {[%clk 0:00:18]} 24... Rxd3 {[%clk 0:00:17.9]} 25. Qxd3 {[%clk 0:00:16.4]} 25... Bd4 {[%clk 0:00:16.6]} 26. Rd1 {[%clk 0:00:13.7]} 26... Rd8 {[%clk 0:00:15.8]} 27. Qf3 {[%clk 0:00:11.5]} 27... b5 {[%clk 0:00:15.5]} 28. Qf4 {[%clk 0:00:09]} 28... Kh8 {[%clk 0:00:14.5]} 29. g4 {[%clk 0:00:07.3]} 29... bxc4 {[%clk 0:00:13.3]} 30. Rxd4 {[%clk 0:00:05]} 30... cxb3+ {[%clk 0:00:12.4]} 31. Kb2 {[%clk 0:00:02.5]} 31... Qxd4+ {[%clk 0:00:09]} 32. Ka3 {[%clk 0:00:01.5]} 32... Qxf4 {[%clk 0:00:08.1]} 33. h3 {[%clk 0:00:00.5]} 33... Qd6+ {[%clk 0:00:07.7]} 0-1